bitfinex-derivatives/quotes_BNBF0:USTF0_20251220
["timestamp","ask_amount","ask_price","bid_price","bid_amount"]
[1766224925008,0.66572311,853.73,852.74,0.20388793]
[1766224925305,0.66572311,853.72,852.74,0.20388793]
[1766224925505,0.66572311,853.71,852.74,0.20388793]
[1766224925708,0.66572311,853.7,852.74,0.20388793]
[1766224925904,0.66572311,853.69,852.74,0.20388793]
[1766224926104,0.66572311,853.68,852.74,0.20388793]
[1766224926304,0.66572311,853.67,852.74,0.20388793]
[1766224926505,0.66572311,853.66,852.74,0.20388793]
[1766224926808,0.66572311,853.65,852.74,0.20388793]
[1766224927005,0.66572311,853.64,852.74,0.20388793]
[1766224927306,0.66572311,853.63,852.74,0.20388793]
[1766224927604,0.66572311,853.62,852.74,0.20388793]
[1766224927804,0.66572311,853.61,852.74,0.20388793]
[1766224928005,0.66572311,853.6,852.74,0.20388793]
[1766224928308,0.66572311,853.59,852.74,0.20388793]
[1766224928509,0.66572311,853.58,852.74,0.20388793]
[1766224928706,0.66572311,853.57,852.74,0.20388793]
[1766224929009,0.66572311,853.56,852.74,0.20388793]
[1766224929309,0.66572311,853.55,852.74,0.20388793]
[1766224929506,0.66572311,853.54,852.74,0.20388793]
[1766224929806,0.66572311,853.53,852.74,0.20388793]
[1766224930009,0.66572311,853.52,852.74,0.20388793]
[1766224930209,0.66572311,853.51,852.74,0.20388793]
[1766224930410,0.66572311,853.5,852.74,0.20388793]
[1766224930611,0.66572311,853.49,852.74,0.20388793]
[1766224930812,0.87800389,853.76,852.74,0.20388793]
[1766224931013,0.66573551,853.75,852.74,0.20388793]
[1766224931210,0.66573551,853.74,852.74,0.20388793]
[1766224931410,0.66573551,853.73,852.74,0.20388793]
[1766224931617,0.66573551,853.72,852.74,0.20388793]
[1766224931813,0.66573551,853.71,852.74,0.20388793]
[1766224932013,0.66573551,853.7,852.74,0.20388793]
[1766224932213,0.66573551,853.69,852.74,0.20388793]
[1766224932420,0.66573551,853.68,852.74,0.20388793]
[1766224932615,0.66573551,853.67,852.74,0.20388793]
[1766224932817,0.66573551,853.66,852.74,0.20388793]
[1766224933120,0.66573551,853.65,852.74,0.20388793]
[1766224933317,0.66573551,853.64,852.74,0.20388793]
[1766224933517,0.66573551,853.63,852.74,0.20388793]
[1766224933820,0.66573551,853.62,852.74,0.20388793]
[1766224934017,0.66573551,853.61,852.74,0.20388793]
[1766224934221,0.66573551,853.6,852.74,0.20388793]
[1766224934517,0.66573551,853.59,852.74,0.20388793]
[1766224934718,0.66573551,853.58,852.74,0.20388793]
[1766224935022,0.66573551,853.57,852.74,0.20388793]
[1766224935319,0.66573551,853.56,852.74,0.20388793]
[1766224935518,0.66573551,853.55,852.74,0.20388793]
[1766224935719,0.66573551,853.54,852.74,0.20388793]
[1766224935916,0.66573551,853.53,852.74,0.20388793]
[1766224936118,0.66573551,853.52,852.74,0.20388793]
[1766224936321,0.66573551,853.51,852.74,0.20388793]
[1766224936522,0.66573551,853.5,852.74,0.20388793]
[1766224936721,0.66573551,853.49,852.74,0.20388793]
[1766224936918,0.66573551,853.48,852.74,0.20388793]
[1766224937124,0.87800389,853.76,852.74,0.20388793]
[1766224937420,1.54384085,853.75,852.74,0.20388793]
[1766224937720,0.66583696,853.74,852.74,0.20388793]
[1766224937919,0.66583696,853.73,852.74,0.20388793]
[1766224938123,0.66583696,853.72,852.74,0.20388793]
[1766224938321,0.66583696,853.71,852.74,0.20388793]
[1766224938626,0.66583696,853.7,852.74,0.20388793]
[1766224938824,0.66583696,853.69,852.74,0.20388793]
[1766224939025,0.66583696,853.68,852.74,0.20388793]
[1766224939222,0.66583696,853.67,852.74,0.20388793]
[1766224939521,0.66583696,853.66,852.74,0.20388793]
[1766224939825,0.66583696,853.65,852.74,0.20388793]
[1766224940021,0.66583696,853.64,852.74,0.20388793]
[1766224940221,0.87800389,853.75,852.74,0.20388793]
[1766224940222,0.66583696,853.63,852.74,0.20388793]
[1766224940423,0.66583696,853.62,852.74,0.20388793]
[1766224940622,0.66583696,853.61,852.74,0.20388793]
[1766224940821,0.66583696,853.6,852.74,0.20388793]
[1766224941023,0.66583696,853.59,852.74,0.20388793]
[1766224941325,0.66583696,853.58,852.74,0.20388793]
[1766224941621,0.66583696,853.57,852.74,0.20388793]
[1766224941824,0.66583696,853.56,852.74,0.20388793]
[1766224942022,0.66583696,853.55,852.74,0.20388793]
[1766224942221,0.66583696,853.54,852.74,0.20388793]
[1766224942427,0.66583696,853.53,852.74,0.20388793]
[1766224942628,0.66583696,853.52,852.74,0.20388793]
[1766224942924,0.66583696,853.51,852.74,0.20388793]
[1766224943125,0.66583696,853.5,852.74,0.20388793]
[1766224943325,0.66583696,853.49,852.74,0.20388793]
[1766224943528,0.66583696,853.48,852.74,0.20388793]
[1766224943728,0.66583696,853.47,852.74,0.20388793]
[1766224943929,0.87800389,853.74,852.74,0.20388793]
[1766224944129,0.66602054,853.73,852.74,0.20388793]
[1766224944324,0.66602054,853.72,852.74,0.20388793]
[1766224944526,0.66602054,853.71,852.74,0.20388793]
[1766224944728,0.66602054,853.7,852.74,0.20388793]
[1766224944928,0.66602054,853.69,852.74,0.20388793]
[1766224945127,0.66602054,853.68,852.74,0.20388793]
[1766224945330,0.66602054,853.67,852.74,0.20388793]
[1766224945532,0.66602054,853.66,852.74,0.20388793]
[1766224945725,0.66602054,853.65,852.74,0.20388793]
[1766224945927,0.66602054,853.64,852.74,0.20388793]
[1766224946130,0.66602054,853.63,852.74,0.20388793]
[1766224946430,0.66602054,853.62,852.74,0.20388793]
[1766224946625,0.66602054,853.61,852.74,0.20388793]
[1766224946829,0.66602054,853.6,852.74,0.20388793]
[1766224947030,0.66602054,853.59,852.74,0.20388793]
[1766224947229,0.66602054,853.58,852.74,0.20388793]
[1766224947425,0.66602054,853.57,852.74,0.20388793]
[1766224947627,0.66602054,853.56,852.74,0.20388793]
[1766224947827,0.66602054,853.55,852.74,0.20388793]
[1766224948027,0.66602054,853.54,852.74,0.20388793]
[1766224948227,0.66602054,853.53,852.74,0.20388793]
[1766224948526,0.66602054,853.52,852.74,0.20388793]
[1766224948729,0.66602054,853.51,852.74,0.20388793]
[1766224948931,0.66602054,853.5,852.74,0.20388793]
[1766224949133,0.66602054,853.49,852.74,0.20388793]
[1766224949432,0.66602054,853.48,852.74,0.20388793]
[1766224949732,0.66602054,853.47,852.74,0.20388793]
[1766224949931,0.66602054,853.46,852.74,0.20388793]
[1766224950131,0.66602054,853.45,852.74,0.20388793]
[1766224950434,0.87800389,853.72,852.74,0.20388793]
[1766224950435,0.66602054,853.44,852.74,0.20388793]
[1766224950633,0.87800389,853.71,852.74,0.20388793]
[1766224950928,0.66802867,853.7,852.74,0.20388793]
[1766224951128,0.66802867,853.69,852.74,0.20388793]
[1766224951330,0.66802867,853.68,852.74,0.20388793]
[1766224951527,0.66802867,853.67,852.74,0.20388793]
[1766224951727,0.66802867,853.66,852.74,0.20388793]
[1766224951928,0.66802867,853.65,852.74,0.20388793]
[1766224952132,0.66802867,853.64,852.74,0.20388793]
[1766224952333,0.66802867,853.63,852.74,0.20388793]
[1766224952533,0.66802867,853.62,852.74,0.20388793]
[1766224952734,0.66802867,853.61,852.74,0.20388793]
[1766224952930,0.66802867,853.6,852.74,0.20388793]
[1766224953134,0.66802867,853.59,852.74,0.20388793]
[1766224953430,0.66802867,853.58,852.74,0.20388793]
[1766224953634,0.66802867,853.57,852.74,0.20388793]
[1766224953935,0.66802867,853.56,852.74,0.20388793]
[1766224954130,0.66802867,853.55,852.74,0.20388793]
[1766224954430,0.66802867,853.54,852.74,0.20388793]
[1766224954635,0.66802867,853.53,852.74,0.20388793]
[1766224954832,0.66802867,853.52,852.74,0.20388793]
[1766224955034,0.66802867,853.51,852.74,0.20388793]
[1766224955234,0.66802867,853.5,852.74,0.20388793]
[1766224955436,0.66802867,853.49,852.74,0.20388793]
[1766224955635,0.66802867,853.48,852.74,0.20388793]
[1766224955838,0.66802867,853.47,852.74,0.20388793]
[1766224956038,0.66802867,853.46,852.74,0.20388793]
[1766224956233,0.66802867,853.45,852.74,0.20388793]
[1766224956438,0.66802867,853.44,852.74,0.20388793]
[1766224956637,0.66802867,853.43,852.74,0.20388793]
[1766224956934,0.66802867,853.42,852.74,0.20388793]
[1766224957134,0.66802867,853.41,852.74,0.20388793]
[1766224957334,0.66802867,853.4,852.74,0.20388793]
[1766224957537,0.66802867,853.39,852.74,0.20388793]
[1766224957837,0.66802867,853.38,852.74,0.20388793]
[1766224958038,0.66802867,853.37,852.74,0.20388793]
[1766224958333,0.87800389,853.65,852.74,0.20388793]
[1766224958537,0.66908387,853.64,852.74,0.20388793]
[1766224958735,0.66908387,853.63,852.74,0.20388793]
[1766224958934,0.66908387,853.62,852.74,0.20388793]
[1766224959138,0.66908387,853.61,852.74,0.20388793]
[1766224959339,0.66908387,853.6,852.74,0.20388793]
[1766224959538,0.66908387,853.59,852.74,0.20388793]
[1766224959839,0.66908387,853.58,852.74,0.20388793]
[1766224960134,0.66908387,853.57,852.74,0.20388793]
[1766224960334,0.66908387,853.56,852.74,0.20388793]
[1766224960537,0.66908387,853.55,852.74,0.20388793]
[1766224960736,0.66908387,853.54,852.74,0.20388793]
[1766224960935,0.66908387,853.53,852.74,0.20388793]
[1766224961235,0.66908387,853.52,852.64,1.75734784]
[1766224961541,0.66908387,853.51,852.54,5.20676003]
[1766224961735,0.87800389,853.49,852.54,3.44941219]
[1766224961934,0.66908387,853.48,852.54,3.44941219]
[1766224962235,0.66908387,853.47,852.54,3.44941219]
[1766224962434,0.66908387,853.46,852.54,3.44941219]
[1766224962734,0.66908387,853.45,852.54,3.44941219]
[1766224962935,0.66908387,853.44,852.54,3.44941219]
[1766224963137,0.66908387,853.43,852.54,3.44941219]
[1766224963336,0.66908387,853.42,852.54,3.44941219]
[1766224963534,0.87800389,853.54,852.54,3.44941219]
[1766224963535,0.66908387,853.41,852.54,3.44941219]
[1766224963839,0.66908387,853.4,852.54,3.44941219]
[1766224964038,0.66908387,853.39,852.54,3.44941219]
[1766224964339,0.66908387,853.38,852.54,3.44941219]
[1766224964633,0.66908387,853.37,852.54,3.44941219]
[1766224964838,0.66908387,853.36,852.54,3.44941219]
[1766224965034,0.66908387,853.35,852.54,3.44941219]
[1766224965236,0.66908387,853.34,852.54,3.44941219]
[1766224965435,0.66908387,853.33,852.54,3.44941219]
[1766224965740,0.66908387,853.32,852.54,3.44941219]
[1766224965939,0.66908387,853.31,852.54,3.44941219]
[1766224966134,0.66908387,853.3,852.54,3.44941219]
[1766224966333,0.66908387,853.29,852.54,3.44941219]
[1766224966534,0.87800389,853.56,852.54,3.44941219]
[1766224966732,0.66795898,853.55,852.54,3.44941219]
[1766224966936,0.66795898,853.54,852.54,3.44941219]
[1766224967137,0.66795898,853.53,852.54,3.44941219]
[1766224967337,0.66795898,853.52,852.54,3.44941219]
[1766224967540,0.66795898,853.51,852.54,3.44941219]
[1766224967738,0.66795898,853.5,852.54,3.44941219]
[1766224968042,0.66795898,853.49,852.54,3.44941219]
[1766224968242,0.66795898,853.48,852.54,3.44941219]
[1766224968442,0.66795898,853.47,852.54,3.44941219]
[1766224968738,0.66795898,853.46,852.54,3.44941219]
[1766224968939,0.66795898,853.45,852.54,3.44941219]
[1766224969137,0.66795898,853.44,852.54,3.44941219]
[1766224969342,0.66795898,853.43,852.54,3.44941219]
[1766224969637,0.66795898,853.42,852.54,3.44941219]
[1766224969936,0.66795898,853.41,852.54,3.44941219]
[1766224970138,0.66795898,853.4,852.54,3.44941219]
[1766224970342,0.66795898,853.39,852.54,3.44941219]
[1766224970542,0.66795898,853.38,852.54,3.44941219]
[1766224970838,0.66795898,853.37,852.54,3.44941219]
[1766224971042,0.66795898,853.36,852.54,3.44941219]
[1766224971343,0.66795898,853.35,852.54,3.44941219]
[1766224971540,0.66795898,853.34,852.54,3.44941219]
[1766224971747,0.66795898,853.33,852.54,3.44941219]
[1766224971944,0.66795898,853.32,852.54,3.44941219]
[1766224972149,0.66795898,853.31,852.54,3.44941219]
[1766224972346,0.87800389,853.59,852.54,3.44941219]
[1766224972550,0.66756082,853.58,852.54,3.44941219]
[1766224972845,0.66756082,853.57,852.54,3.44941219]
[1766224973050,0.66756082,853.56,852.54,3.44941219]
[1766224973249,0.66756082,853.55,852.54,3.44941219]
[1766224973451,0.66756082,853.54,852.54,3.44941219]
[1766224973652,0.66756082,853.53,852.54,3.44941219]
[1766224973851,0.66756082,853.52,852.54,3.44941219]
[1766224974048,0.66756082,853.51,852.54,3.44941219]
[1766224974248,0.66756082,853.5,852.54,3.44941219]
[1766224974546,0.66756082,853.49,852.54,3.44941219]
[1766224974750,0.66756082,853.48,852.54,3.44941219]
[1766224974949,0.66756082,853.47,852.54,3.44941219]
[1766224975149,0.66756082,853.46,852.54,3.44941219]
[1766224975348,0.66756082,853.45,852.54,3.44941219]
[1766224975551,0.87800389,853.6,852.55,1.17014163]
[1766224977151,0.87800389,853.61,852.55,1.17014163]
[1766224977855,0.20393632,853.51,852.55,1.17014163]
[1766224979255,0.20393632,853.51,852.54,4.61955382]
[1766224979452,0.20393632,853.51,852.54,3.44941219]
[1766224982453,1.08194021,853.51,852.54,3.44941219]
[1766224983154,0.20393632,853.51,852.54,3.44941219]
[1766225010579,0.20393632,853.51,852.54,3.24547527]
[1766225012685,0.87800389,853.44,852.42,0.20395545]
[1766225013280,0.87800389,853.43,852.42,0.20395545]
[1766225014080,0.87800389,853.44,852.42,0.20395545]
[1766225014285,0.87800389,853.43,852.42,0.20395545]
[1766225015086,0.87800389,853.44,852.42,0.20395545]
[1766225015282,0.87800389,853.43,852.42,0.20395545]
[1766225017186,0.87800389,853.42,852.42,0.20395545]
[1766225018081,0.87800389,853.42,852.31,1.17014163]
[1766225018284,0.87800389,853.42,852.32,1.17014163]
[1766225018483,0.87800389,853.42,852.33,0.20398653]
[1766225019383,0.87800389,853.41,852.33,0.20398653]
[1766225020290,0.87800389,853.41,852.33,1.37412816]
[1766225021188,0.87800389,853.4,852.34,1.17014163]
[1766225022090,0.87800389,853.4,852.33,1.37412816]
[1766225022385,0.87800389,853.4,852.34,1.17014163]
[1766225023090,0.87800389,853.13,852.07,1.17014163]
[1766225023286,0.87800389,853.13,852.04,0.20402121]
[1766225023887,1.17167399,853.28,852.04,0.20402121]
[1766225024186,0.87557265,853.14,852.04,0.20402121]
[1766225025190,0.87557265,853.16,852.04,0.20402121]
[1766225026087,0.87557265,853.18,852.04,0.20402121]
[1766225027086,0.87557265,853.19,852.04,0.20402121]
[1766225028190,0.87557265,853.2,852.04,0.20402121]
[1766225029088,0.87557265,853.21,852.04,0.20402121]
[1766225030089,0.87557265,853.22,852.04,0.20402121]
[1766225031193,0.87557265,853.23,852.04,0.20402121]
[1766225032197,0.87316087,853.23,852.04,0.20402121]
[1766225033096,0.87316087,853.24,852.04,0.20402121]
[1766225033897,0.87316087,853.19,852.04,0.20402121]
[1766225034191,0.87316087,853.14,852.04,0.20402121]
[1766225035203,1.75751098,853.45,852.04,0.20402121]
[1766225035204,0.87316087,853.15,852.04,0.20402121]
[1766225036099,0.87316087,853.16,852.04,0.20402121]
[1766225037099,0.87316087,853.17,852.04,0.20402121]
[1766225038106,0.87316087,853.18,852.04,0.20402121]
[1766225041305,1.17167399,853.34,852.04,0.20402121]
[1766225041306,0.87316087,853.19,852.04,0.20402121]
[1766225042206,0.87316087,853.2,852.04,0.20402121]
[1766225044210,0.87316087,853.21,852.04,0.20402121]
[1766225046107,0.87316087,853.22,852.04,0.20402121]
[1766225050216,0.87316087,853.23,852.04,0.20402121]
[1766225057119,0.87316087,853.22,852.04,0.20402121]
[1766225060223,0.87316087,853.21,852.04,0.20402121]
[1766225062126,0.87316087,853.2,852.04,0.20402121]
[1766225064127,0.87316087,853.19,852.04,0.20402121]
[1766225066129,0.87316087,853.18,852.04,0.20402121]
[1766225067126,0.87316087,853.17,852.04,0.20402121]
[1766225068128,0.20393632,853.51,852.04,0.20402121]
[1766225068129,0.87316087,853.16,852.04,0.20402121]
[1766225069132,0.87316087,853.15,852.04,0.20402121]
[1766225069833,0.87316087,853.31,852.04,0.20402121]
[1766225070238,0.87316087,853.33,852.04,0.20402121]
[1766225071134,0.87316087,853.32,852.04,0.20402121]
[1766225072136,0.87316087,853.31,852.04,0.20402121]
[1766225072643,0.87316087,853.36,852.04,1.37416284]
[1766225073243,0.87316087,853.35,852.05,1.17014163]
[1766225074142,0.87316087,853.35,852.06,1.17014163]
[1766225075143,0.87316087,853.34,852.07,1.17014163]
[1766225076146,0.87316087,853.33,852.07,1.17014163]
[1766225077143,0.87316087,853.32,852.08,1.17014163]
[1766225078147,0.87316087,853.31,852.09,1.17014163]
[1766225079150,0.87316087,853.3,852.1,1.17014163]
[1766225080145,0.87316087,853.3,852.11,1.17014163]
[1766225081046,0.87316087,853.28,852.11,1.17014163]
[1766225081348,0.87316087,853.28,852.12,1.17014163]
[1766225082149,0.87316087,853.27,852.13,1.17014163]
[1766225083149,0.87316087,853.28,852.13,1.17014163]
[1766225084048,0.87316087,853.28,852.12,1.17014163]
[1766225086154,0.87316087,853.29,852.12,1.17014163]
[1766225087149,0.87316087,853.29,852.11,1.17014163]
[1766225089153,0.87316087,853.3,852.11,1.17014163]
[1766225090156,0.87316087,853.3,852.1,1.17014163]
[1766225093155,0.87316087,853.31,852.1,1.17014163]
[1766225094160,0.87316087,853.31,852.09,1.17014163]
[1766225105067,0.87316087,853.31,852.1,1.17014163]
[1766225110276,0.87316087,853.3,852.1,1.17014163]
[1766225111172,0.87316087,853.3,852.11,1.17014163]
[1766225114273,0.87316087,853.3,852.04,0.20402121]
[1766225114274,0.87316087,853.29,852.12,1.17014163]
[1766225117277,0.87316087,853.28,852.13,1.17014163]
[1766225119082,0.87316087,853.27,852.14,1.17014163]
[1766225121189,0.87316087,853.26,852.15,1.17014163]
[1766225121981,0.87316087,853.27,852.16,1.17014163]
[1766225122284,0.87316087,853.26,852.16,1.17014163]
[1766225122583,0.87316087,853.26,852.17,1.17014163]
[1766225124182,0.87316087,853.25,852.18,1.17014163]
[1766225125086,0.87316087,853.24,852.19,1.17014163]
[1766225126183,0.87316087,853.23,852.2,1.17014163]
[1766225127190,0.87316087,853.21,852.22,1.17014163]
[1766225128091,0.87316087,853.2,852.23,1.17014163]
[1766225129089,0.87316087,853.17,852.26,1.17014163]
[1766225130292,0.87316087,853.16,852.27,1.17014163]
[1766225131098,0.87316087,853.15,852.28,1.17014163]
[1766225155613,0.87316087,853.16,852.28,1.17014163]
[1766225161115,0.87316087,853.15,852.28,1.17014163]
[1766225163618,0.87316087,853.3,852.43,1.17014163]
[1766225163916,0.87316087,853.31,852.44,1.17014163]
[1766225164116,0.87316087,853.31,852.04,0.20402121]
[1766225164117,0.87316087,853.34,852.42,1.17014163]
[1766225164312,0.87316087,853.35,852.43,1.17014163]
[1766225165320,0.87316087,853.36,852.41,1.17014163]
[1766225165516,0.87316087,853.36,852.42,1.17014163]
[1766225166117,0.87316087,853.37,852.41,1.17014163]
[1766225166318,0.87316087,853.38,852.41,1.17014163]
[1766225166517,0.87316087,853.36,852.39,1.17014163]
[1766225166714,0.87316087,853.31,852.34,1.17014163]
[1766225167113,0.87316087,853.32,852.34,1.17014163]
[1766225167313,0.87316087,853.22,852.24,1.17014163]
[1766225173422,0.87316087,853.2,852.22,1.17014163]
[1766225178121,0.20401882,853.19,852.22,1.17014163]
[1766225183022,0.87316087,853.2,852.22,1.17014163]
[1766225224151,0.87316087,853.19,852.23,1.17014163]
[1766225225250,0.87316087,853.18,852.24,1.17014163]
[1766225226152,0.87316087,853.16,852.26,1.17014163]
[1766225227256,0.87316087,853.15,852.27,1.17014163]
[1766225228154,0.87316087,853.14,852.27,1.17014163]
[1766225232163,0.87316087,853.14,852.28,1.17014163]
[1766225245775,0.87316087,853.13,852.27,1.17014163]
[1766225305534,0.87316087,853.2,852.35,1.17014163]
[1766225306034,0.87316087,853.21,852.35,1.17014163]
[1766225306235,0.87316087,853.22,852.34,1.17014163]
[1766225307132,0.87316087,853.23,852.33,1.17014163]
[1766225308432,0.87316087,853.24,852.33,1.17014163]
[1766225309234,0.87316087,853.24,852.32,1.17014163]
[1766225311237,0.87316087,853.25,852.32,1.17014163]
[1766225313137,0.87316087,853.25,852.31,1.17014163]
[1766225316242,0.87316087,853.26,852.31,1.17014163]
[1766225318142,0.87316087,853.26,852.3,1.17014163]
[1766225325153,0.87316087,853.27,852.3,1.17014163]
[1766225328151,0.87316087,853.27,852.29,1.17014163]
[1766225331250,0.20400088,853.34,852.29,1.17014163]
[1766225331454,0.87715201,853.27,852.29,1.17014163]
[1766225334854,0.20400088,853.34,852.29,1.17014163]
[1766225335055,0.87714297,853.27,852.29,1.17014163]
[1766225335854,0.87714297,853.27,852.3,1.17014163]
[1766225350166,0.87714297,853.26,852.3,1.17014163]
[1766225351170,0.87714297,853.26,852.31,1.17014163]
[1766225357171,0.87714297,853.25,852.32,1.17014163]
[1766225361176,0.87714297,853.24,852.33,1.17014163]
[1766225363179,0.87714297,853.23,852.34,1.17014163]
[1766225365278,0.87714297,853.21,852.36,1.17014163]
[1766225372984,0.87714297,853.22,852.37,1.17014163]
[1766225373283,0.87714297,853.22,852.36,1.17014163]
[1766225376181,0.87714297,853.23,852.36,1.17014163]
[1766225380986,0.87714297,853.24,852.37,1.17014163]
[1766225381184,0.87714297,853.26,852.39,1.17014163]
[1766225382184,0.87714297,853.26,852.38,1.17014163]
[1766225385188,0.87714297,853.27,852.38,1.17014163]
[1766225388690,0.87714297,853.27,852.37,1.17014163]
[1766225396005,0.87714297,853.28,852.37,1.17014163]
[1766225421116,0.87714297,853.27,852.37,1.17014163]
[1766225426122,0.87714297,853.27,852.38,1.17014163]
[1766225434131,0.87714297,853.26,852.38,1.17014163]
[1766225436230,0.87714297,853.26,852.39,1.17014163]
[1766225440233,0.87714297,853.25,852.4,1.17014163]
[1766225454045,0.87714297,853.39,852.54,1.17014163]
[1766225454246,0.87714297,853.53,852.59,1.17014163]
[1766225455442,0.87714297,853.55,852.57,1.17014163]
[1766225456342,0.87714297,853.56,852.56,1.17014163]
[1766225457247,0.87714297,853.57,852.55,1.17014163]
[1766225458247,0.87714297,853.58,852.54,1.17014163]
[1766225458443,0.87714297,853.59,852.54,1.17014163]
[1766225459446,0.87714297,853.59,852.53,1.17014163]
[1766225461153,0.87714297,853.6,852.53,1.17014163]
[1766225462153,0.87714297,853.61,852.52,1.17014163]
[1766225463254,0.87714297,853.62,852.51,1.17014163]
[1766225463854,0.87714297,853.53,852.42,1.17014163]
[1766225464054,5.28599685,853.53,852.42,1.17014163]
[1766225467766,4.40885388,853.53,852.47,1.17014163]
[1766225471269,4.40885388,853.53,852.46,1.17014163]
[1766225476374,4.40885388,853.53,852.45,1.17014163]
[1766225486378,4.40885388,853.53,852.46,1.17014163]
[1766225486578,4.40885388,853.53,852.46,4.1744302]
[1766225489179,4.40885388,853.53,852.46,3.00428857]
[1766225500387,4.40885388,853.53,852.46,4.1744302]
[1766225503286,4.40885388,853.53,852.47,1.17014163]
[1766225505386,4.40885388,853.53,852.48,1.17014163]
[1766225507188,5.28599685,853.53,852.48,1.17014163]
[1766225507395,5.28599685,853.53,852.49,1.17014163]
[1766225508390,0.87714297,853.52,852.49,1.17014163]
[1766225509290,0.87714297,853.52,852.46,3.00428857]
[1766225509291,0.87714297,853.52,852.5,1.17014163]
[1766225510291,0.87714297,853.51,852.51,1.17014163]
[1766225511295,0.87714297,853.5,852.52,1.17014163]
[1766225512294,0.87714297,853.49,852.53,1.17014163]
[1766225513293,0.87714297,853.47,852.55,1.17014163]
[1766225519300,0.87714297,853.46,852.55,1.17014163]
[1766225522206,0.87714297,853.46,852.56,1.17014163]
[1766225527215,0.87714297,853.45,852.56,1.17014163]
[1766225541221,0.87714297,853.44,852.56,1.17014163]
[1766225542222,0.87714297,853.44,852.57,1.17014163]
[1766225547122,0.87714297,853.43,852.57,1.17014163]
[1766225562037,0.87714297,853.41,852.56,1.17014163]
[1766225562338,0.87714297,853.34,852.46,3.00428857]
[1766225563033,0.87714297,853.3,852.46,3.00428857]
[1766225563239,0.87714297,853.26,852.46,3.00428857]
[1766225564237,0.87714297,853.28,852.46,3.00428857]
[1766225565238,0.87714297,853.29,852.46,3.00428857]
[1766225566238,4.40885388,853.53,852.46,3.00428857]
[1766225566239,0.87714297,853.3,852.46,3.00428857]
[1766225567237,0.87714297,853.31,852.46,3.00428857]
[1766225568140,0.87714297,853.32,852.46,3.00428857]
[1766225570339,0.87714297,853.33,852.46,3.00428857]
[1766225572243,0.87714297,853.34,852.46,3.00428857]
[1766225574239,0.87714297,853.35,852.46,3.00428857]
[1766225576148,0.87714297,853.34,852.46,3.00428857]
[1766225576347,0.87714297,853.35,852.46,3.00428857]
[1766225581352,0.87714297,853.36,852.46,3.00428857]
[1766225584453,0.87714297,853.37,852.46,3.00428857]
[1766225584657,0.87714297,853.45,852.46,3.00428857]
[1766225585653,5.25824403,853.45,852.46,3.00428857]
[1766225593366,0.87714297,853.44,852.46,3.00428857]
[1766225601377,0.87714297,853.43,852.46,3.00428857]
[1766225607176,0.87714297,853.42,852.46,3.00428857]
[1766225608079,0.87714297,853.42,852.34,1.17014163]
[1766225608379,0.87714297,853.42,852.35,1.17014163]
[1766225611183,0.87714297,853.41,852.35,1.17014163]
[1766225612284,0.87714297,853.41,852.36,1.17014163]
[1766225612980,0.87714297,853.38,852.33,1.17014163]
[1766225614285,0.87714297,853.38,852.34,1.17014163]
[1766225615181,0.87714297,853.37,852.34,1.17014163]
[1766225617289,0.87714297,853.36,852.35,1.17014163]
[1766225619290,0.87714297,853.35,852.36,1.17014163]
[1766225621193,0.87714297,853.34,852.37,1.17014163]
[1766225629294,0.87714297,853.34,852.38,1.17014163]
[1766225630201,0.87714297,853.33,852.38,1.17014163]
[1766225636103,0.87714297,853.32,852.38,1.17014163]
[1766225637203,0.87714297,853.32,852.39,1.17014163]
[1766225639211,0.87714297,853.31,852.39,1.17014163]
[1766225642214,0.87714297,853.31,852.4,1.17014163]
[1766225643214,0.87714297,853.3,852.4,1.17014163]
[1766225651312,0.87714297,853.3,852.41,1.17014163]
[1766225661315,0.87714297,853.29,852.41,1.17014163]
[1766225669222,0.87714297,853.29,852.42,1.17014163]
[1766225670524,0.87714297,853.28,852.42,1.17014163]
[1766225676029,0.87714297,853.2,852.35,1.17014163]
[1766225676429,0.87714297,853.22,852.34,1.17014163]
[1766225677428,0.87714297,853.22,852.33,1.17014163]
[1766225678326,0.87714297,853.23,852.33,1.17014163]
[1766225679531,0.87714297,853.23,852.32,4.16009912]
[1766225681231,0.87714297,853.24,852.32,4.16009912]
[1766225682225,0.87714297,853.24,852.32,2.98995749]
[1766225685228,0.87714297,853.25,852.32,2.98995749]
[1766225694246,0.87714297,853.26,852.32,2.98995749]
[1766225708156,3.90285698,853.26,852.32,2.98995749]
[1766225708451,0.87714297,853.19,852.32,2.98995749]
[1766225711356,0.87714297,853.2,852.32,2.98995749]
[1766225713359,3.02571401,853.26,852.32,2.98995749]
[1766225713556,0.87641501,853.2,852.32,2.98995749]
[1766225716165,0.87641501,853.21,852.32,2.98995749]
[1766225727277,0.87641501,853.2,852.32,2.98995749]
[1766225730679,0.87641501,853.2,852.28,0.20398593]
[1766225733282,0.87641501,853.19,852.28,0.20398593]
[1766225742388,3.02571401,853.26,852.35,1.17014163]
[1766225743291,3.02571401,853.26,852.34,1.17014163]
[1766225748198,3.02571401,853.26,852.33,1.17014163]
[1766225748599,3.02571401,853.26,852.31,1.17014163]
[1766225748797,0.87641501,853.24,852.28,0.20398593]
[1766225750099,0.87641501,853.23,852.28,0.20398593]
[1766225772608,0.87641501,853.22,852.28,0.20398593]
[1766225788230,0.87641501,853.21,852.28,0.20398593]
[1766225788428,0.87641501,853.19,852.28,0.20398593]